[Event "Cattolica Chess Festival 2022"]
[Site "Cattolica"]
[Date "2022.06.08"]
[Round "5.8"]
[White "Heinemann, Josefine"]
[Black "Milikow, Elie"]
[Result "0-1"]
[ECO "B41"]
[WhiteElo "2300"]
[BlackElo "2428"]
[Annotator "TA"]
[PlyCount "86"]
[EventDate "2022.06.04"]
[EventCountry "ITA"]
[SourceTitle "playchess.com"]
[Source "ChessBase"]
[SourceQuality "1"]
[TimeControl "5400+30"]

{[%evp 14,86,43,44,41,45,44,58,59,53,52,47,57,40,43,36,36,35,52,36,50,44,54,26,45,8,33,25,22,23,15,20,41,44,31,16,55,53,58,26,74,51,57,69,70,61,84,0,0,-68,-11,-25,-17,-17,-21,-16,-14,-156,-184,-498,-493,-483,-495,-495,-489,-476,-484,-897,-877,-29988,-29989,-29989,-29990,-29994,-29992]} 1. e4 {[%emt 0:30:02]} c5 {[%emt 0:30:35]} 2. Nf3 {[%emt 0:00:06]} e6 {[%emt 0:00:15]} 3. d4 {[%emt 0:00:11]} cxd4 {[%emt 0:00:15]} 4. Nxd4 {[%emt 0:00:06]} a6 {[%emt 0:00:10]} 5. c4 {[%emt 0:00:22]} Nf6 {[%emt 0:00:13]} 6. Nc3 {[%emt 0:00:04]} Qc7 {[%emt 0:00:09]} 7. a3 {[%emt 0:00:05]} b6 {[%emt 0:00:09]} 8. Be3 {[%emt 0:00:38]} Bb7 {[%emt 0:00:20] B41: Sicilian: Kan Variation: 5 c4.} 9. f3 {[%emt 0:00:14]} Be7 {[%emt 0:01:08]} 10. Be2 {[%emt 0:00:24]} O-O {[%emt 0:00:18] White is slightly better.} 11. O-O {[%emt 0:01:19]} d6 {[%emt 0:00:13]} 12. Rc1 {[%emt 0:01:11]} Nbd7 {[%emt 0:00:26]} 13. Qd2 {[%emt 0:01:29]} Rac8 {[%emt 0:00:52]} 14. b4 {[%emt 0:01:04]} Qb8 {[%emt 0:00:21]} 15. Kh1 {[%emt 0:01:53]} h5 {[%emt 0:03:14]} 16. Rc2 {[%emt 0:03:21]} Ne5 {[%emt 0:10:19]} 17. Na4 {[%emt 0:03:42]} Bd8 {[%emt 0:01:48]} 18. Rb1 {[%emt 0:08:11]} Re8 {[%emt 0:10:41] [#]} 19. b5 $146 {[%emt 0:06:10]} ({Predecessor:} 19. c5 b5 20. Nb2 h4 21. cxd6 Qxd6 22. Rxc8 Bxc8 23. Nb3 Qb8 24. Qd4 Bb7 25. Qa7 Qxa7 26. Bxa7 {½-½ (37) Sadzikowski,D (2510)-Kveinys,A (2510) Heusenstamm 2015}) 19... a5 {[%emt 0:12:18]} 20. Nc6 {[%emt 0:02:12]} Bxc6 {[%emt 0:02:17]} 21. bxc6 {[%emt 0:00:29]} Rxc6 {[%emt 0:00:15]} 22. Qxa5 {[%emt 0:03:20]} Ned7 {[%emt 0:05:55]} 23. Qb5 {[%emt 0:04:32]} Qc8 {[%emt 0:00:49][%cal Od6d5]} 24. Bf2 {[%emt 0:05:28]} d5 {[%emt 0:02:41]} 25. exd5 {[%emt 0:01:46]} exd5 {[%emt 0:00:25]} 26. Rbc1 {[%emt 0:01:16]} Ne5 {[%emt 0:08:50]} (26... Be7 $11 {was preferrable.}) 27. c5 {[%emt 0:03:10]} bxc5 {[%emt 0:07:23]} 28. Rxc5 {[%emt 0:01:35]} Rxc5 {[%emt 0:00:05]} 29. Nxc5 {[%emt 0:00:07]} Qf5 {[%emt 0:01:14][%cal Oh5h4]} 30. Re1 {[%emt 0:04:59]} (30. Nb3 $1 $16) 30... Bc7 $11 {[%emt 0:01:12]} 31. Bg3 {[%emt 0:02:44] [#]} (31. Bf1 $11) 31... Rb8 {[%emt 0:00:00]} (31... Nxf3 $1 $15 32. Rf1 (32. gxf3 $2 Bxg3 33. Rg1 h4 $19) (32. Bxf3 $2 Rxe1+ 33. Bxe1 Qe5 $19) 32... Rb8 33. Rxf3 Rxb5 34. Rxf5 Rxc5 35. Bxc7 Rxc7) 32. Qa4 {[%emt 0:00:00]} Bd6 $36 {[%emt 0:00:00][%mdl 2048] Black has good play.} 33. Nb3 {[%emt 0:00:00]} Qc2 {[%emt 0:00:00]} 34. Bd1 {[%emt 0:00:00] This bishop pair is nice.} Qc3 {[%emt 0:00:09]} 35. Rg1 {[%emt 0:00:00] [#]} (35. Qa5 $1 $11 Rxb3 36. Qd8+ Kh7 37. Qxd6 (37. Bxb3 Nxf3 38. Qxd6 Nxe1 $17)) 35... Nd3 $1 $17 {[%emt 0:00:34] 0x0.002afdf858a3dp-1022s more active pieces.} 36. Rf1 $2 {[%emt 0:00:00]} (36. Qa7 Bxg3 37. hxg3 Rxb3 38. Bxb3 Qxb3 39. Qe3) 36... Bxg3 $19 {[%emt 0:00:28]} 37. hxg3 {[%emt 0:00:00] [#]} Nf2+ $1 {[%emt 0:00:11][%mdl 512]} 38. Rxf2 {[%emt 0:00:00] Strongly threatening Kh2.} Qe1+ {[%emt 0:00:01]} 39. Kh2 {[%emt 0:00:00] Qd4 is the strong threat.} Qxf2 {[%emt 0:00:05]} 40. Qf4 {[%emt 0:00:00]} (40. Qd4 $142 Qf1 41. Qg1 Qxg1+ 42. Kxg1) 40... Re8 {[%emt 0:00:33] ( -> ...Re1)} 41. Nd4 {[%emt 0:00:00]} Re1 {[%emt 0:00:16] Black mates.} 42. Qb8+ {[%emt 0:00:00]} Kh7 {[%emt 0:00:36]} 43. Bc2+ {[%emt 0:00:00]} g6 {[%emt 0:00:09] Weighted Error Value: White=0.61/Black=0.09 (flawless)} 0-1

[Event "Cattolica Chess Festival 2022"]
[Site "Cattolica"]
[Date "2022.06.08"]
[Round "5.9"]
[White "Buksa, Nataliya"]
[Black "Bin-Suhayl, Ieysaa"]
[Result "0-1"]
[ECO "C11"]
[WhiteElo "2406"]
[BlackElo "2255"]
[Annotator "TA"]
[PlyCount "114"]
[EventDate "2022.06.04"]
[EventCountry "ITA"]
[SourceTitle "playchess.com"]
[Source "ChessBase"]
[SourceQuality "1"]
[TimeControl "5400+30"]

{[%evp 17,114,8,10,12,12,0,8,16,16,18,21,6,11,12,0,0,7,0,-10,-30,-22,-29,-39,-28,-24,-343,-41,-343,-340,-331,-327,-558,-554,-698,-700,-630,-511,-485,-492,-565,-551,-567,-636,-559,-470,-769,-754,-733,-734,-847,-861,-839,-841,-925,-816,-906,-847,-1097,-1085,-29949,-29950,-29954,-29963,-29967,-29963,-29957,-29964,-29966,-29965,-29967,-29969,-29973,-29974,-29975,-29975,-29975,-29974,-29974,0,-29975,-29976,-29975,-29974,-29972,-29973,-29983,-29983,-29983,-29984,-29985,-29986,-29987,-29988,-29988,-29987,-29987,-29986,-29986,-29987]} 1. e4 {[%emt 0:30:02]} e6 {[%emt 0:33:43]} 2. d4 {[%emt 0:00:07]} d5 {[%emt 0:00:30]} 3. Nc3 {[%emt 0:00:06]} Nf6 {[%emt 0:00:34]} 4. e5 {[%emt 0:00:04]} Nfd7 {[%emt 0:00:08]} 5. f4 {[%emt 0:00:05]} c5 {[%emt 0:00:02]} 6. Nf3 {[%emt 0:00:03]} Nc6 {[%emt 0:00:03]} 7. Be3 {[%emt 0:00:04]} a6 {[%emt 0:00:02]} 8. Qd2 {[%emt 0:00:03]} b5 {[%emt 0:00:03]} 9. dxc5 {[%emt 0:00:49]} Bxc5 {[%emt 0:00:14]} 10. Bd3 {[%emt 0:00:04] C11: French: Classical System: 4 e5 and 4 Bg5 dxe4.} Qb6 {[%emt 0:00:06]} ({Don't play} 10... d4 11. Nxd4 Nxd4 12. Ne4 $16) 11. Bf2 {[%emt 0:00:10]} Bxf2+ {[%emt 0:01:48]} 12. Qxf2 {[%emt 0:00:05] The position is equal.} Qxf2+ {[%emt 0:01:08]} 13. Kxf2 {[%emt 0:00:04]} O-O {[%emt 0:00:22]} 14. Rhe1 {[%emt 0:00:05]} Nc5 {[%emt 0:01:07]} 15. a3 {[%emt 0:09:46] [#]} Bd7 $146 {[%emt 0:03:29]} ({Predecessor:} 15... b4 16. Ne2 f6 17. Kg3 Bd7 18. Ned4 Nxd4 19. Nxd4 Rfb8 20. Kf3 bxa3 21. bxa3 Rb2 {1-0 (85) Bagi,M (2469)-Bin Suhayl,I (2187) Hastings 2019}) 16. Ke3 {[%emt 0:07:45]} f6 {[%emt 0:14:32]} 17. Ne2 {[%emt 0:01:51]} g5 {[%emt 0:07:33][%cal Bg7g5,Bg5g4][%mdl 32] ...gxf4+ is the strong threat.} 18. g3 {[%emt 0:07:08]} g4 {[%emt 0:01:48]} 19. Nfd4 {[%emt 0:00:52] [#]} Nxe5 {[%emt 0:12:51]} 20. fxe5 {[%emt 0:06:42]} fxe5 {[%emt 0:00:02]} 21. Nb3 $2 {[%emt 0:00:05][%mdl 8192] Black converts the advantage convincingly.} (21. Rf1 $11) 21... Rf3+ $19 {[%emt 0:00:26]} 22. Kd2 {[%emt 0:00:04] [#]} Rxd3+ $1 {[%emt 0:00:13][%mdl 576] Deflection} 23. cxd3 {[%emt 0:01:22]} Nxb3+ {[%emt 0:00:07]} 24. Ke3 $2 {[%emt 0:00:33]} (24. Kc3 Nxa1 25. Rxa1) 24... Rf8 {[%emt 0:04:15][%csl Gg4][%cal Rf8f3]} 25. Ng1 {[%emt 0:00:04] Inhibits Rf3+.} d4+ {[%emt 0:05:51]} 26. Ke2 {[%emt 0:00:04]} Nxa1 {[%emt 0:07:47]} 27. Rxa1 {[%emt 0:00:04][%mdl 4096] Endgame KRB-KRN} Kf7 {[%emt 0:00:04]} 28. h3 {[%emt 0:06:41]} h5 {[%emt 0:00:06]} 29. Kd2 {[%emt 0:07:51]} Ke7 {[%emt 0:00:10]} 30. Ke2 {[%emt 0:00:04]} Rg8 {[%emt 0:01:10] aiming for ...gxh3.} 31. h4 {[%emt 0:00:59]} (31. hxg4 $142 Rxg4 32. Nf3) 31... Rc8 {[%emt 0:00:17]} 32. Kd2 {[%emt 0:00:04]} Rf8 {[%emt 0:00:03]} 33. Ke2 {[%emt 0:00:03]} Kd6 {[%emt 0:00:52]} 34. Ke1 {[%emt 0:01:11]} Bc6 {[%emt 0:00:17]} 35. Rc1 {[%emt 0:02:34]} Bg2 {[%emt 0:02:54]} 36. Ke2 {[%emt 0:00:03]} Bb7 {[%emt 0:00:22]} 37. b4 {[%emt 0:03:15]} Rc8 {[%emt 0:01:15]} 38. Rxc8 {[%emt 0:00:56]} Bxc8 {[%emt 0:00:04] KB-KN} 39. Kd2 {[%emt 0:00:01]} Bb7 {[%emt 0:00:08]} 40. Ne2 {[%emt 0:00:04]} Bd5 {[%emt 0:00:16]} 41. Kc2 {[%emt 0:00:48]} Kc6 {[%emt 0:00:09]} 42. Kd2 {[%emt 0:00:34]} Kb6 {[%emt 0:00:05]} 43. Kc2 {[%emt 0:00:39]} a5 {[%emt 0:00:30]} 44. bxa5+ {[%emt 0:00:59]} Kxa5 {[%emt 0:00:04]} 45. Kb2 {[%emt 0:00:02]} Kb6 {[%emt 0:00:25]} 46. Kc2 {[%emt 0:00:04]} Kc5 {[%emt 0:00:03]} 47. Kd2 {[%emt 0:03:59]} Kb6 {[%emt 0:00:07]} 48. Kc2 {[%emt 0:00:04]} Bf3 {[%emt 0:00:36] Black mates.} 49. Nc1 {[%emt 0:00:19]} e4 {[%emt 0:00:06][%cal Be5e4,Be4e3][%mdl 32]} 50. Nb3 {[%emt 0:00:49]} e5 {[%emt 0:00:04]} 51. Nd2 {[%emt 0:00:38]} e3 {[%emt 0:00:57]} 52. Nb3 {[%emt 0:00:05]} Bd5 {[%emt 0:00:14]} 53. Nc1 {[%emt 0:00:03]} Ka5 {[%emt 0:00:55]} 54. Kb1 {[%emt 0:00:05]} Ka4 {[%emt 0:00:26]} 55. Kb2 {[%emt 0:00:04]} Be6 {[%emt 0:00:13]} 56. Ne2 {[%emt 0:00:05]} Bf7 {[%emt 0:00:03]} 57. Nc1 {[%emt 0:00:04]} Bd5 {[%emt 0:00:03] Weighted Error Value: White=0.71/Black=0.10 (very precise)} 0-1

[Event "Cattolica Chess Festival 2022"]
[Site "Cattolica"]
[Date "2022.06.08"]
[Round "5.10"]
[White "Willow, Jonah B"]
[Black "Lohvinov, Petro"]
[Result "1/2-1/2"]
[ECO "B42"]
[WhiteElo "2401"]
[BlackElo "2232"]
[Annotator "TA"]
[PlyCount "90"]
[EventDate "2022.06.04"]
[EventCountry "ITA"]
[SourceTitle "playchess.com"]
[Source "ChessBase"]
[SourceQuality "1"]
[TimeControl "5400+30"]

{[%evp 17,90,45,52,45,52,49,63,57,66,50,80,38,55,57,142,155,185,70,61,50,54,-29,-54,-35,0,0,0,0,0,0,-17,-44,-37,-34,-31,-45,0,-7,0,-7,-8,-8,0,-50,-47,-197,-121,-141,-129,-241,-139,-135,-11,-4,0,0,0,-37,-32,-35,-38,-130,-128,-112,-137,-126,254,239,258,0,0,0,0,0,0]} 1. e4 {[%emt 0:32:32]} c5 {[%emt 0:34:37]} 2. Nf3 {[%emt 0:00:05]} e6 {[%emt 0:00:04]} 3. d4 {[%emt 0:00:08]} cxd4 {[%emt 0:00:02]} 4. Nxd4 {[%emt 0:00:06]} a6 {[%emt 0:00:04]} 5. Bd3 {[%emt 0:00:07]} Bc5 {[%emt 0:00:08]} 6. Nb3 {[%emt 0:00:06]} Be7 {[%emt 0:00:05]} 7. O-O {[%emt 0:00:23]} d6 {[%emt 0:00:15]} 8. c4 {[%emt 0:00:19]} Nf6 {[%emt 0:00:25]} 9. Nc3 {[%emt 0:00:08]} Nbd7 {[%emt 0:00:32]} 10. f4 {[%emt 0:00:27] B42: Sicilian: Kan Variation: 5 Bd3.} Qc7 {[%emt 0:00:09]} 11. Be3 {[%emt 0:00:34]} b6 {[%emt 0:00:17]} 12. Qf3 {[%emt 0:00:31] White is more active. White is slightly better.} Bb7 {[%emt 0:00:30]} 13. Rad1 {[%emt 0:02:03]} O-O {[%emt 0:02:58][%cal Ob6b5]} 14. Qh3 {[%emt 0:00:10]} h6 {[%emt 0:40:12]} 15. g4 {[%emt 0:04:11] [#]} Nh7 $146 {[%emt 0:02:46] Prevents g5.} (15... Rae8 $1 $14) ({Predecessor:} 15... Ne8 16. Nd4 Nc5 17. Bc2 Nf6 18. g5 hxg5 19. fxg5 Nh7 20. g6 fxg6 21. Nxe6 Nxe6 22. Qxe6+ {½-½ (46) Fleetwood,D (2498)-Stull,N (2563) ICCF email 2000}) 16. g5 $1 $16 {[%emt 0:19:06]} Kh8 {[%emt 0:13:08][%cal Rh6g5]} 17. g6 {[%emt 0:07:47]} (17. gxh6 g6 18. Nd2 Bf6 $16) (17. Nd4 $18) 17... fxg6 $14 {[%emt 0:00:42]} 18. Qxe6 {[%emt 0:00:07]} Bf6 {[%emt 0:00:48]} 19. Qg4 {[%emt 0:02:44]} (19. Nd5 $14 Bxd5 20. cxd5) 19... Bxc3 $11 {[%emt 0:01:17]} 20. bxc3 {[%emt 0:00:06]} Nhf6 {[%emt 0:00:12]} (20... g5 $5) 21. Qxg6 {[%emt 0:00:09]} Rae8 {[%emt 0:00:16][%cal Rb7e4]} 22. Bd4 {[%emt 0:06:39]} Bxe4 {[%emt 0:00:19]} 23. Bxe4 {[%emt 0:00:02]} Rxe4 {[%emt 0:00:09]} 24. Rde1 {[%emt 0:00:08] Inhibits Re2.} Rfe8 {[%emt 0:00:56]} 25. Rxe4 {[%emt 0:02:08]} Rxe4 {[%emt 0:00:01]} 26. Nd2 {[%emt 0:01:00]} Re2 {[%emt 0:00:53]} 27. Qd3 $132 {[%emt 0:00:44][%mdl 2048] White is not holding back} Re7 {[%emt 0:00:29]} 28. Nf3 {[%emt 0:00:06]} Nc5 {[%emt 0:00:51]} 29. Qg6 {[%emt 0:00:39]} Nce4 {[%emt 0:01:09]} 30. Nh4 {[%emt 0:00:22]} (30. Rb1 $11) 30... Qxc4 $15 {[%emt 0:00:43]} 31. Qf5 {[%emt 0:06:09] [#]} (31. Nf5 $15 Rb7 32. Nxh6 (32. Bxf6 Nxf6 33. Nxh6 Qxa2 $17)) 31... Re8 {[%emt 0:00:00]} ({Black should play} 31... Kg8 $1 $19 32. Qh3 Qxa2 33. Bxb6 a5) 32. Re1 {[%emt 0:00:00]} Qxa2 {[%emt 0:00:00]} 33. Ng2 {[%emt 0:00:00]} (33. Qg6 $17) 33... Qc4 {[%emt 0:00:00]} (33... Qf7 $19 34. Nh4 (34. Rxe4 $2 Rxe4 35. Qc8+ Kh7 $19) 34... Kg8) 34. Qg6 $17 {[%emt 0:00:00]} Qc6 {[%emt 0:00:00]} ({Better is} 34... Re7 $17 {[%cal Oe4d2] White must now prevent ...Nd2!} 35. Ne3 Qf7 36. Qxf7 Rxf7) 35. Nh4 $11 {[%emt 0:00:00]} d5 {[%emt 0:02:30]} 36. Nf5 {[%emt 0:00:00][%csl Gf5][%cal Rg6g7]} Qd7 {[%emt 0:00:22]} 37. Nxh6 {[%emt 0:00:00][%cal Oe1e4]} Rf8 {[%emt 0:00:01]} 38. Nf5 {[%emt 0:01:24] Threatens to win with Re3.} Qf7 {[%emt 0:00:15]} 39. Qg2 {[%emt 0:02:04]} (39. Nh4 $15) 39... Nh5 $17 {[%emt 0:00:01][%csl LRf4,LRf5] Pair of Knights!} 40. Nh4 {[%emt 0:01:13]} Nxf4 {[%emt 0:00:36]} 41. Qg4 {[%emt 0:00:01] Strongly threatening Rf1.} Ne6 $2 {[%emt 0:01:46][%mdl 8192]} (41... Kh7 $17 {and life is bright. aiming for ...Nd3.} 42. Rf1 {[#]} Ng5 $1 {[%mdl 512]}) 42. Ng6+ $18 {[%emt 0:00:40]} Kg8 {[%emt 0:00:01]} 43. Nxf8 $2 {[%emt 0:00:14]} ({White must play} 43. Qh5 $18 {[%csl Gg6][%cal Rh5h8]} Qe8 44. Qh8+ (44. Bxb6 Rf6 $15) 44... Kf7 45. Nxf8 Nxd4 46. cxd4 (46. Rf1+ Nf6 $14) 46... Qxf8 47. Qh5+ Ke7 48. Qe5+ Kd7 49. Qxd5+ Nd6 50. Rc1) 43... Nxd4 $11 {[%emt 0:00:22] The position is equal.} 44. Rf1 {[%emt 0:00:12] Against Qf2+. Dancing on a razor blade.} Nf6 {[%emt 0:00:53]} 45. Qxd4 {[%emt 0:00:21]} Kxf8 {[%emt 0:00:35] A wild game.  Weighted Error Value: White=0.37/Black=0.48} 1/2-1/2

[Event "Cattolica Chess Festival 2022"]
[Site "Cattolica"]
[Date "2022.06.09"]
[Round "6.1"]
[White "Pantsulaia, Levan"]
[Black "Schmider, Niklas"]
[Result "1/2-1/2"]
[ECO "A34"]
[WhiteElo "2587"]
[BlackElo "2393"]
[Annotator "TA"]
[PlyCount "168"]
[EventDate "2022.06.04"]
[EventCountry "ITA"]
[SourceTitle "playchess.com"]
[Source "ChessBase"]
[SourceQuality "1"]
[TimeControl "5400+30"]

{[%evp 20,168,0,16,0,6,23,0,16,7,4,6,3,0,0,-1,-14,-37,-47,-25,20,-11,12,0,0,-25,-6,-25,-13,-8,0,-23,33,0,0,-175,-193,-206,-203,-404,-265,-265,-264,-264,-264,-264,-264,-264,-264,-264,-264,-264,-264,-231,-224,-215,-220,-211,-206,-224,-220,-211,-220,-213,-165,-165,-140,-127,-77,-85,-84,-87,-77,-77,-77,-77,-77,-77,-69,-77,-77,-77,-77,-77,-77,-77,-77,-77,-77,-87,-77,-84,-84,-87,-87,-87,0,-77,0,-87,-87,-87,-87,-87,-8,-87,-8,-87,-8,-17,-8,-77,-77,-77,-8,-75,-8,-8,-8,-17,-17,-75,-17,-17,-17,-77,-61,-87,-87,-87,-87,-87,-87,-87,-87,-87,-87,-87,-87,-87,-87,-87,0,-87,-87,-87,-87,-465,-465,-428,-445]} 1. c4 {[%emt 0:30:06]} c5 {[%emt 0:30:51]} 2. Nf3 {[%emt 0:00:26]} Nc6 {[%emt 0:00:12]} 3. Nc3 {[%emt 0:00:07]} Nf6 {[%emt 0:00:06]} 4. g3 {[%emt 0:00:37]} d5 {[%emt 0:00:20]} 5. cxd5 {[%emt 0:00:09]} Nxd5 {[%emt 0:00:05]} 6. Bg2 {[%emt 0:00:05]} Nc7 {[%emt 0:00:06]} 7. O-O {[%emt 0:05:12]} e5 {[%emt 0:00:22]} 8. d3 {[%emt 0:00:06]} Be7 {[%emt 0:00:32]} 9. Nd2 {[%emt 0:00:05]} Bd7 {[%emt 0:00:04] 9...0-0 is more fashionable.} 10. Nc4 {[%emt 0:00:15]} f6 {[%emt 0:00:51]} 11. f4 {[%emt 0:00:04]} b5 $1 {[%emt 0:00:10] A34: Symmetrical English: 2 Nc3, lines with ...d5.} 12. Ne3 {[%emt 0:00:06]} O-O {[%emt 0:00:26]} 13. Ned5 {[%emt 0:05:48] [#]} Nxd5 $146 {[%emt 0:01:04] The position is equal.} ({Predecessor:} 13... Rb8 14. fxe5 Nxe5 15. Nxc7 Qxc7 16. Nd5 Qd8 17. Nxe7+ Qxe7 18. Bf4 Rbc8 19. Rc1 Ng6 {0-1 (36) Jurek,J (2247)-Warmerdam,M (2480) Pardubice 2019}) 14. Bxd5+ {[%emt 0:05:33]} Kh8 {[%emt 0:00:07]} 15. Nxb5 {[%emt 0:04:39]} Rb8 {[%emt 0:00:05]} 16. Nc3 {[%emt 0:01:16]} exf4 $1 {[%emt 0:00:54]} 17. gxf4 {[%emt 0:10:44]} f5 {[%emt 0:02:57]} 18. b3 {[%emt 0:09:31]} Nb4 {[%emt 0:20:22][%mdl 1024] Black has compensation.} 19. Bf3 {[%emt 0:02:17]} Bc6 {[%emt 0:01:03]} 20. Bd2 {[%emt 0:07:09]} Bf6 {[%emt 0:07:44]} 21. Rc1 {[%emt 0:02:28]} Qd6 {[%emt 0:01:42]} 22. Qe1 {[%emt 0:04:50]} Rfe8 {[%emt 0:04:47] White must now prevent ...Nxd3.} 23. Qg3 $1 {[%emt 0:00:40]} Re6 {[%emt 0:01:44] And now ...Bxc3 would win.} 24. Kh1 {[%emt 0:00:16]} Rbe8 {[%emt 0:02:51]} 25. Rf2 {[%emt 0:03:59]} R8e7 {[%emt 0:11:51]} (25... Bd4 $11 26. Rg2 Nd5) 26. Bxc6 {[%emt 0:01:20]} (26. Qg2 $5) 26... Qxc6+ {[%emt 0:01:34]} 27. Qg2 $2 {[%emt 0:00:15]} (27. Qf3 $1 $11) 27... Qe8 $1 $19 {[%emt 0:03:36]} 28. Rcf1 {[%emt 0:04:31]} Bd4 {[%emt 0:01:16][%cal Bf6d4,Bd4e3,Be3d2,Bd2c3][%mdl 32]} 29. Rf3 $2 {[%emt 0:00:01]} (29. Qf3) 29... Rxe2 {[%emt 0:06:20]} 30. Nxe2 {[%emt 0:00:06]} Rxe2 {[%emt 0:00:04]} 31. Re3 {[%emt 0:00:00]} Bxe3 {[%emt 0:00:00]} (31... Rxe3 32. Bxe3 Bxe3 33. Re1 $15) 32. Qxe2 {[%emt 0:00:00]} Qa8+ {[%emt 0:00:00]} 33. Qg2 {[%emt 0:00:00]} Qxg2+ {[%emt 0:00:00][%mdl 64] Remove Defender} 34. Kxg2 {[%emt 0:00:00]} Bxd2 {[%emt 0:00:00]} 35. Rf2 {[%emt 0:00:00]} Bc3 {[%emt 0:00:00]} 36. Re2 {[%emt 0:00:00][%cal Re2e8]} h6 {[%emt 0:00:00]} 37. Kf3 {[%emt 0:00:00]} Kh7 {[%emt 0:00:00]} ({Inferior is} 37... Nxd3 38. Re3 Ne1+ 39. Ke2 $11) 38. a3 {[%emt 0:00:00]} Nc6 {[%emt 0:00:00] ...Nd4+ is the strong threat.} ({Stronger than} 38... Nxd3 39. Re3 Ne1+ 40. Kg3 $11) 39. Kg3 {[%emt 0:00:00]} Nd4 {[%emt 0:00:00] Against Re6} 40. Re5 {[%emt 0:00:00]} Nxb3 {[%emt 0:00:00]} 41. Rxf5 {[%emt 0:00:00]} Bd4 {[%emt 0:00:00]} 42. Rf7 {[%emt 0:00:00]} Nc1 {[%emt 0:00:00]} 43. Rxa7 {[%emt 0:00:00]} Nxd3 {[%emt 0:00:00]} (43... c4 $142 $1 {[%cal Rc4d3]} 44. Rc7 c3) 44. Kf3 $17 {[%emt 0:00:00]} c4 {[%emt 0:00:00]} 45. Rc7 {[%emt 0:00:27]} Bc5 {[%emt 0:00:00] Hoping for ...c3.} 46. Ke4 {[%emt 0:00:59]} Bxa3 {[%emt 0:00:00] Threatens to win with ...Nc5+.} 47. Rxc4 {[%emt 0:00:07]} Nc5+ {[%emt 0:00:00]} 48. Kf5 {[%emt 0:00:24]} Nd7 {[%emt 0:00:00]} 49. h3 {[%emt 0:02:37]} Nf6 {[%emt 0:00:00]} 50. Ra4 {[%emt 0:00:37]} Bc1 {[%emt 0:00:20]} 51. Ra1 {[%emt 0:00:16]} Be3 {[%emt 0:00:19]} 52. Ra3 {[%emt 0:00:14]} Bf2 {[%emt 0:00:07]} 53. Ra2 {[%emt 0:00:26]} Bh4 {[%emt 0:00:06]} 54. Rd2 {[%emt 0:00:19]} Ng8 {[%emt 0:01:15]} 55. Ke6 {[%emt 0:01:13]} Ne7 {[%emt 0:01:22]} 56. Rg2 {[%emt 0:01:09]} Bf6 {[%emt 0:02:19]} 57. Rg1 {[%emt 0:00:37]} Bh4 {[%emt 0:00:24]} 58. Rg2 {[%emt 0:00:19]} Bf6 {[%emt 0:01:34]} 59. Rg1 $1 {[%emt 0:00:06]} Ng6 {[%emt 0:00:51]} 60. Kf5 {[%emt 0:00:10]} Nh4+ {[%emt 0:00:13]} 61. Ke4 {[%emt 0:00:23]} Kg8 {[%emt 0:01:22]} (61... g6 $17) 62. Rc1 {[%emt 0:01:55]} (62. f5 $11) 62... Kf7 {[%emt 0:00:03]} (62... g6 $17) 63. Rc7+ {[%emt 0:00:21]} (63. f5 $1 $11) 63... Kg6 {[%emt 0:00:06]} ({Better is} 63... Be7 $1 $17 64. Ke5 Nf3+ 65. Kf5 h5) 64. Rc5 $11 {[%emt 0:00:06]} Kh7 {[%emt 0:01:42]} 65. Rc6 {[%emt 0:00:59]} (65. f5 $1 $11 {was the only way to keep the balance.}) 65... Ng6 $1 $17 {[%emt 0:00:42]} 66. Ra6 {[%emt 0:00:06]} Bd8 {[%emt 0:01:31]} ({Black should play} 66... Kg8 $17) 67. Kf5 {[%emt 0:00:20]} (67. f5 $11 Nh8 68. Ra7) 67... Nh4+ {[%emt 0:00:37]} (67... Ne7+ $17 68. Ke4 Ng8) 68. Ke4 $11 {[%emt 0:00:20]} Be7 {[%emt 0:00:21]} 69. Ra7 {[%emt 0:00:40]} Bf6 {[%emt 0:00:34]} 70. Ra6 {[%emt 0:00:15]} (70. f5 $11 {keeps the balance.}) 70... Kg6 {[%emt 0:00:20]} ({Black should try} 70... Ng6 $1 $17) 71. Ra5 {[%emt 0:00:05]} Kf7 {[%emt 0:00:13]} 72. Ra7+ {[%emt 0:00:13] [#]} (72. f5 $1 $11) 72... Be7 $1 $17 {[%emt 0:00:06]} 73. Rb7 {[%emt 0:00:21]} g6 {[%emt 0:00:26]} 74. Rb5 {[%emt 0:00:32]} Ke6 {[%emt 0:00:13]} 75. Re5+ {[%emt 0:00:45]} Kf6 {[%emt 0:00:06]} 76. Ra5 {[%emt 0:00:50]} Bd6 {[%emt 0:00:28]} 77. Ra6 {[%emt 0:01:10]} Ke6 {[%emt 0:00:05]} 78. Ra5 {[%emt 0:00:05]} Nf5 {[%emt 0:00:16]} 79. Rb5 {[%emt 0:00:55]} Bc7 {[%emt 0:00:43] ( -> ...Nd6+)} 80. Rc5 {[%emt 0:00:09]} Bd6 {[%emt 0:00:37]} 81. Rb5 $1 {[%emt 0:00:06]} Ng3+ {[%emt 0:00:09]} 82. Kf3 {[%emt 0:00:07] [#]} Nh5 $1 {[%emt 0:00:23]} 83. Rxh5 $2 {[%emt 0:00:10][%mdl 8192]} gxh5 $19 {[%emt 0:00:03]} 84. f5+ {[%emt 0:00:07]} Kxf5 {[%emt 0:00:13][%mdl 32768] Weighted Error Value: White=0.15 (very precise) /Black=0.12 (very precise) . An unexpected result.} 1/2-1/2